fUSD/lending_fUSD_20251213
["ID","MTS","AMOUNT","RATE_DAILY","PERIOD"]
[398414159,1765622716142,-1000.0,0.00042405,120]
[398414160,1765622716172,-1000.0,0.00042405,120]
[398414161,1765622716205,-429.318,0.00042405,120]
[398414162,1765622716237,-600.0,0.00042405,120]
[398414163,1765622716268,-499.0,0.00042405,120]
[398414164,1765622716299,-445.202766,0.00042405,120]
[398414165,1765622716332,-461.67526834,0.00042405,120]
[398414166,1765622716362,-600.0,0.00042405,120]
[398414167,1765622716393,-478.75725327,0.00042405,120]
[398414168,1765622716427,-600.0,0.00042405,120]
[398414169,1765622716462,-496.47127164,0.00042405,120]
[398414170,1765622716503,-600.0,0.00042405,120]
[398414171,1765622716537,-514.84070869,0.00042405,120]
[398414172,1765622716567,-600.0,0.00042405,120]
[398414173,1765622716598,-533.88981491,0.00042405,120]
[398414174,1765622716627,-600.0,0.00042405,120]
[398414175,1765622716657,-553.64373807,0.00042405,120]
[398414176,1765622716692,-600.0,0.00042405,120]
[398414177,1765622716722,-1000.0,0.00042405,120]
[398414178,1765622716753,-574.12855637,0.00042405,120]
[398414179,1765622716783,-600.0,0.00042405,120]
[398414180,1765622716815,-1000.0,0.00042405,120]
[398414181,1765622716846,-595.37131296,0.00042405,120]
[398414182,1765622716878,-600.0,0.00042405,120]
[398414183,1765622716908,-1000.0,0.00042405,120]
[398414184,1765622716940,-6888.0,0.00042405,120]
[398414185,1765622716970,-600.0,0.00042405,120]
[398414186,1765622717001,-7142.856,0.00042405,120]
[398414187,1765622717031,-600.0,0.00042405,120]
[398414188,1765622717063,-1000.0,0.00042405,120]
[398414189,1765622717501,-7407.141672,0.00042405,120]
[398414190,1765622717534,-600.0,0.00042405,120]
[398414191,1765622717567,-1000.0,0.00042405,120]
[398414192,1765622717600,-7681.20591386,0.00042405,120]
[398414193,1765622717631,-600.0,0.00042405,120]
[398414194,1765622717661,-1000.0,0.00042405,120]
[398414195,1765622717692,-600.0,0.00042405,120]
[398414196,1765622717724,-1000.0,0.00042405,120]
[398414197,1765622717754,-600.0,0.00042405,120]
[398414198,1765622717784,-500.0,0.00042405,120]
[398414199,1765622717824,-518.5,0.00042405,120]
[398414200,1765622717854,-537.6845,0.00042405,120]
[398414201,1765622717887,-557.5788265,0.00042405,120]
[398414202,1765622717918,-1000.0,0.00042405,120]
[398414203,1765622717947,-578.20924308,0.00042405,120]
[398414204,1765622717978,-1000.0,0.00042405,120]
[398414205,1765622718006,-500.0,0.00042405,120]
[398414206,1765622718036,-599.60298507,0.00042405,120]
[398414207,1765622718068,-1000.0,0.00042405,120]
[398414208,1765622718097,-518.5,0.00042405,120]
[398414209,1765622718127,-1000.0,0.00042405,120]
[398414210,1765622718158,-537.6845,0.00042405,120]
[398414211,1765622718188,-1000.0,0.00042405,120]
[398414212,1765622718216,-557.5788265,0.00042405,120]
[398414213,1765622718245,-1000.0,0.00042405,120]
[398414214,1765622718276,-621.78829552,0.00042405,120]
[398414215,1765622718304,-557.5788265,0.00042405,120]
[398414216,1765622718334,-1000.0,0.00042405,120]
[398414217,1765622718367,-644.79446246,0.00042405,120]
[398414218,1765622718397,-1000.0,0.00042405,120]
[398414219,1765622718427,-644.79446246,0.00042405,120]
[398414220,1765622718459,-1000.0,0.00042405,120]
[398414221,1765622718489,-1000.0,0.00042405,120]
[398414222,1765622718519,-1000.0,0.00042405,120]
[398414223,1765622718549,-220.0,0.00042405,120]
[398414224,1765622718580,-1000.0,0.00042405,120]
[398414225,1765622718613,-220.0,0.00042405,120]
[398414226,1765622718643,-1000.0,0.00042405,120]
[398414227,1765622718672,-151.0,0.00042405,120]
[398414228,1765622718702,-220.0,0.00042405,120]
[398414229,1765622718732,-1000.0,0.00042405,120]
[398414230,1765622718762,-151.0,0.00042405,120]
[398414231,1765622718792,-1000.0,0.00042405,120]
[398414232,1765622718823,-151.0,0.00042405,120]
[398414233,1765622718856,-1000.0,0.00042405,120]
[398414234,1765622718888,-151.0,0.00042405,120]
[398414235,1765622718918,-1000.0,0.00042405,120]
[398414236,1765622718951,-151.0,0.00042405,120]
[398414237,1765622718981,-151.0,0.00042405,120]
[398414238,1765622719011,-1000.0,0.00042405,120]
[398414239,1765622719043,-151.0,0.00042405,120]
[398414240,1765622719074,-1000.0,0.00042405,120]
[398414241,1765622719108,-151.0,0.00042405,120]
[398414242,1765622719139,-1000.0,0.00042405,120]
[398414243,1765622719169,-151.0,0.00042405,120]
[398414244,1765622719199,-1000.0,0.00042405,120]
[398414245,1765622719228,-151.0,0.00042405,120]
[398414246,1765622719258,-1000.0,0.00042405,120]
[398414247,1765622719288,-1000.0,0.00042405,120]
[398414248,1765622719318,-151.0,0.00042405,120]
[398414249,1765622719351,-1000.0,0.00042405,120]
[398414250,1765622719381,-1000.0,0.00042405,120]
[398414251,1765622719411,-151.0,0.00042405,120]
[398414252,1765622719441,-1000.0,0.00042405,120]
[398414253,1765622719471,-151.0,0.00042405,120]
[398414254,1765622719500,-151.0,0.00042405,120]
[398414255,1765622719531,-151.0,0.00042405,120]
[398414256,1765622719561,-151.0,0.00042405,120]
[398414257,1765622719589,-151.0,0.00042405,120]
[398414258,1765622719619,-151.0,0.00042405,120]
[398414259,1765622719649,-151.0,0.00042405,120]
[398414260,1765622719679,-151.0,0.00042405,120]
[398414261,1765622719708,-151.0,0.00042405,120]
[398414262,1765622719738,-151.0,0.00042405,120]
[398414263,1765622721773,1098.0,0.00042405,30]
[398414264,1765622721942,1098.0,0.00042405,30]
[398414265,1765622721992,161.19359454,0.00015288,2]
[398414266,1765622722028,198.57165543,0.00015288,2]
[398414267,1765622722057,150.0,0.00015288,2]
[398414268,1765622722109,1098.0,0.00042405,30]
[398414269,1765622722245,1098.0,0.00042405,30]
[398414270,1765622722550,517.75011369,0.00042405,30]
[398414271,1765622722810,250.72416972,0.00015288,2]
[398414273,1765622735682,150.0,0.00015288,2]
[398414274,1765622735721,150.0,0.00015854,2]
[398414275,1765622761075,253.62,0.00015798,2]
[398414278,1765622780021,2061.48,0.0001582,2]
[398414279,1765622876066,250.0,0.00015816,2]
[398414285,1765622982271,500.0,0.00016,2]
[398414286,1765623008946,504.53703353,0.00016,2]
[398414295,1765623031309,-284.0,0.00016003,2]
[398414296,1765623031319,-162.31,0.00016003,2]
[398414297,1765623031328,-195.0,0.00016021,2]
[398414298,1765623031338,-178.13,0.00016039,2]
[398414299,1765623031348,-166.66,0.00016062,2]
[398414300,1765623031358,-166.66,0.0001638,2]
[398414301,1765623031367,-1189.83577512,0.00016405,2]
[398414302,1765623031377,-150.0,0.0001642,2]
[398414303,1765623031387,-304.06693998,0.00016548,2]
[398414304,1765623031396,-300.0,0.00016552,2]
[398414305,1765623031406,-416.56254852,0.00016562,2]
[398414306,1765623031431,-1310.86145148,0.00016562,2]
[398414307,1765623031442,-163.217,0.00016562,2]
[398414308,1765623031451,-500.0,0.00016588,2]
[398414309,1765623031462,-200.0,0.00016601,2]
[398414310,1765623031471,-789.83963826,0.00016616,2]
[398414311,1765623031480,-76.92246083,0.00016647,2]
[398414312,1765623031491,-223.07753917,0.00016647,2]
[398414313,1765623031501,-63.98677801,0.00016647,2]
[398414314,1765623031521,-1136.01322199,0.00016647,2]
[398414315,1765623031530,-500.0,0.00016648,2]
[398414316,1765623031540,-150.0,0.00016648,2]
[398414317,1765623031550,-150.0,0.00016648,2]
[398414318,1765623031559,-150.0,0.00016648,2]
[398414319,1765623031568,-150.0,0.00016648,2]
[398414320,1765623031577,-150.0,0.00016648,2]
[398414321,1765623031587,-223.54665641,0.00016658,2]
[398414322,1765623031603,-651.45334359,0.00016658,2]
[398414323,1765623031612,-124.87106286,0.00016679,2]
[398414324,1765623031623,-113.12893714,0.00016679,2]
[398414325,1765623031633,-166.66,0.00016698,2]
[398414326,1765623031643,-265.56122184,0.00016711,2]
[398414327,1765623031654,-918.93227696,0.00016711,2]
[398414391,1765623038102,-15.5065012,0.00016711,2]
[398414392,1765623038112,-473.15780071,0.00016712,2]
[398414393,1765623038124,-26.84219929,0.00016712,2]
[398414394,1765623038134,-1622.0,0.00016712,2]
[398414395,1765623038143,-150.0,0.00016712,2]
[398414396,1765623038153,-254.80739053,0.00016712,2]
[398414397,1765623038174,-245.19260947,0.00016712,2]
[398414398,1765623038183,-8.98782859,0.00016712,2]
[398414399,1765623038203,-159.45217141,0.00016712,2]
[398414400,1765623038218,-550.0,0.00016715,2]
[398414401,1765623038228,-150.0,0.00016716,2]
[398414402,1765623038238,-150.0,0.00016716,2]
[398414403,1765623038248,-150.0,0.00016716,2]
[398414404,1765623038258,-61.81529218,0.00016716,2]
[398414405,1765623038269,-206.40539527,0.00016716,2]
[398414406,1765623038279,-150.0,0.00016716,2]
[398414407,1765623038290,-155.20312827,0.00016716,2]
[398414408,1765623038299,-500.0,0.00016725,2]
[398414409,1765623038310,-500.0,0.00016785,2]
[398414410,1765623038320,-153.18226241,0.00016785,2]
[398414411,1765623038331,-263.1975105,0.00016785,2]
[398414412,1765623038341,-141.15712537,0.00016785,2]
[398414413,1765623038358,-11.16235731,0.00016785,2]
[398414414,1765623038367,-150.0,0.00016785,2]
[398414415,1765623038377,-150.0,0.00016785,2]
[398414416,1765623038387,-47.17249433,0.00016789,2]
[398414417,1765623038404,-452.82750567,0.00016789,2]
[398414418,1765623038413,-173.61242128,0.00016789,2]
[398414419,1765623038422,-301.79179903,0.00016789,2]
[398414420,1765623038433,-470.51835594,0.00016789,2]
[398414421,1765623038443,-115.13517291,0.00016789,2]
[398414424,1765623039510,-258.6914863,0.00016789,2]
[398414425,1765623039523,-126.17334079,0.00016789,2]
[398414426,1765623039532,-500.0,0.00016789,2]
[398414427,1765623039542,-626.98469715,0.00016789,2]
[398414428,1765623039551,-500.0,0.00016789,2]
[398414429,1765623039561,-500.0,0.00016789,2]
[398414430,1765623039570,-500.0,0.00016789,2]
[398414431,1765623039579,-240.64694206,0.00016789,2]
[398414432,1765623039596,-259.35305794,0.00016789,2]
[398414433,1765623039605,-329.21116536,0.00016789,2]
[398414434,1765623039662,-63.29873583,0.00016789,2]
[398414435,1765623039672,-500.0,0.00016789,2]
[398414436,1765623039681,-500.0,0.00016789,2]
[398414437,1765623039691,-500.0,0.00016789,2]
[398414438,1765623039700,-500.0,0.00016789,2]
[398414439,1765623039710,-500.0,0.00016789,2]
[398414440,1765623039719,-500.0,0.00016789,2]
[398414441,1765623039728,-500.0,0.00016789,2]
[398414442,1765623039738,-191.51584878,0.00016789,2]
[398414443,1765623039747,-500.0,0.00016789,2]
[398414444,1765623039757,-500.0,0.00016789,2]
[398414445,1765623039766,-25525.45146359,0.0001679,2]
[398414446,1765623039778,-610.83100546,0.0001679,2]
[398414447,1765623039793,-453.2234889,0.0001679,2]
[398414469,1765623042852,-1888.0,0.0001679,2]
[398414470,1765623043009,-731522.49404205,0.0001679,2]
[398414471,1765623043019,-1603.24850598,0.000168,2]
[398414472,1765623043029,-9123.75332499,0.000168,2]
[398414473,1765623043038,-1256.04,0.000168,2]
[398414474,1765623043048,-1865.8927,0.000168,2]
[398414475,1765623043057,-6799.5553,0.000168,2]
[398414476,1765623043067,-167.09,0.00016829,2]
[398414477,1765623043076,-160.85,0.00016839,2]
[398414478,1765623043086,-500.0,0.00016849,2]
[398414479,1765623043095,-95.98631904,0.00016849,2]
[398414480,1765623043111,-725.58645518,0.00016849,2]
[398414481,1765623043123,-800.42722578,0.00016849,2]
[398414482,1765623043132,-150.0,0.00016849,2]
[398414483,1765623043141,-500.0,0.00016849,2]
[398414484,1765623043150,-150.80982889,0.00016853,2]
[398414485,1765623043159,-150.0,0.00016853,2]
[398414486,1765623043169,-200.88620983,0.00016853,2]
[398414488,1765623043177,-150.0,0.00016862,2]
[398414490,1765623043186,-33497.77744471,0.0001689,2]
[398414492,1765623043195,-162.31,0.00016892,2]
[398414494,1765623043204,-579.3195,0.00016897,2]
[398414496,1765623043214,-160.70566298,0.00016899,2]
[398414498,1765623043223,-500.0,0.00016899,2]
[398414500,1765623043232,-500.0,0.00016899,2]
[398414501,1765623043241,-500.0,0.00016899,2]
[398414502,1765623043251,-1000.0,0.000169,2]
[398414503,1765623043259,-156.38084245,0.000169,2]
[398414504,1765623043269,-164.69365535,0.000169,2]
[398414506,1765623043278,-13918.49,0.00016922,2]
[398414507,1765623043287,-1805.36,0.00016922,2]
[398414509,1765623043296,-12047.46,0.00016922,2]
[398414511,1765623043306,-7730.56,0.00016922,2]
[398414513,1765623043315,-8345.8,0.00016922,2]
[398414515,1765623043324,-2999.99,0.00016922,2]
[398414517,1765623043334,-1711.43,0.00016922,2]
[398414519,1765623043343,-402.55406266,0.00016922,2]
[398414521,1765623043352,-150.0,0.00016922,2]
[398414523,1765623043361,-1603.2485059,0.00016922,2]
[398414525,1765623043371,-9123.75332491,0.00016922,2]
[398414527,1765623043380,-500.0,0.00016973,2]
[398414529,1765623043390,-500.0,0.00016973,2]
[398414531,1765623043399,-500.0,0.00016973,2]
[398414533,1765623043408,-282.11143422,0.00016973,2]
[398414535,1765623043418,-500.0,0.00016973,2]
[398414537,1765623043427,-500.0,0.00016973,2]
[398414539,1765623043437,-500.0,0.00016973,2]
[398414541,1765623043447,-223.28073538,0.00016974,2]
[398414543,1765623043456,-500.0,0.00016986,2]
[398414545,1765623043465,-1622.0,0.00016986,2]
[398414547,1765623043474,-150.0,0.00016986,2]
[398414549,1765623043483,-500.0,0.00016986,2]
[398414551,1765623043492,-630.99,0.00016986,2]
[398414553,1765623043501,-466.09,0.00016986,2]
[398414555,1765623043510,-176.97375711,0.00016986,2]
[398414557,1765623043519,-300.76,0.00016986,2]
[398414559,1765623043528,-150.0,0.0001699,2]
[398414561,1765623043538,-300.2481796,0.00016998,2]
[398414563,1765623043547,-500.0,0.00016999,2]
[398414565,1765623043555,-500.0,0.00016999,2]
[398414567,1765623043564,-459874.1378973,0.00017,2]
[398414571,1765623043591,-284.94163019,0.00017,2]
[398414651,1765623045367,-1203.57354655,0.00017,2]
[398414652,1765623045419,-303.8,0.00017,2]
[398414653,1765623045525,-7952.77,0.00017,2]
[398414654,1765623045536,-1115.8401823,0.00017,2]
[398414655,1765623045579,-522.02000001,0.00017,2]
[398414656,1765623045634,-7615.62455557,0.00017,2]
[398414658,1765623045647,-4595.22888,0.00017,2]
[398414661,1765623361167,999.0,0.00015933,3]
[398414662,1765623455133,1000.0,0.00015848,2]
[398414663,1765623534159,1312.47,0.00015858,2]
[398414671,1765624085848,-256.90724133,0.00016199,2]
[398414672,1765624161321,-258.1733,0.00016099,2]
[398414673,1765624161344,-610.68551039,0.00016199,2]
[398414674,1765624162413,-332.40724828,0.00016199,2]
[398414675,1765624162438,-112.63909406,0.00016199,2]
[398414676,1765624164961,-187.36090594,0.00016199,2]
[398414677,1765624164983,-173.12532032,0.000162,2]
[398414678,1765624167201,-76.87467968,0.000162,2]
[398414679,1765624167222,-114.96313924,0.000162,2]
[398414680,1765624168734,-35.03686076,0.000162,2]
[398414681,1765624168754,-134.77213924,0.000162,2]
[398414699,1765624231589,-917.60337377,0.000161,2]
[398414700,1765624231599,-300.0,0.00016199,2]
[398414701,1765624231608,-1200.0,0.00016199,2]
[398414702,1765624231618,-300.0,0.00016199,2]
[398414703,1765624231627,-250.0,0.00016199,2]
[398414704,1765624231636,-300.0,0.000162,2]
[398414705,1765624231646,-15.22786076,0.000162,2]
[398414706,1765624231655,-150.0,0.000162,2]
[398414707,1765624231664,-298.12636701,0.000162,2]
[398414708,1765624231673,-150.00000001,0.000162,2]
[398414709,1765624231682,-150.0,0.000162,2]
[398414710,1765624231692,-150.0,0.000162,2]
[398414711,1765624231701,-150.0,0.000162,2]
[398414712,1765624231711,-150.91550183,0.000162,2]
[398414713,1765624231721,-150.0,0.000162,2]
[398414714,1765624231731,-300.0,0.00016329,2]
[398414715,1765624231740,-252.8920483,0.00016329,2]
[398414716,1765624231749,-325.06402163,0.00016353,2]
[398414717,1765624231758,-6290.44,0.00016438,2]
[398414718,1765624231768,-620.26346645,0.00016454,2]
[398414719,1765624231777,-550.0,0.00016539,2]
[398414720,1765624231786,-6857.92375235,0.0001654,2]
[398414721,1765624231795,-599.0,0.0001654,2]
[398414722,1765624231805,-154.47071227,0.0001654,2]
[398414723,1765624231815,-246.83931656,0.0001654,2]
[398414724,1765624231825,-300.0,0.0001654,2]
[398414725,1765624231836,-151.0,0.0001654,2]
[398414726,1765624231845,-599.0,0.00016595,2]
[398414727,1765624231855,-200.0,0.00016618,2]
[398414728,1765624231865,-599.0,0.0001665,2]
[398414729,1765624231875,-151.0,0.0001669,2]
[398414730,1765624231884,-591.82939962,0.0001669,2]
[398414731,1765624231894,-574.12855637,0.0001669,2]
[398414732,1765624231904,-1000.0,0.0001669,2]
[398414733,1765624231913,-1000.0,0.0001669,2]
[398414734,1765624231923,-1000.0,0.0001669,2]
[398414736,1765624231933,-1000.0,0.0001669,2]
[398414738,1765624231943,-1000.0,0.0001669,2]
[398414740,1765624231952,-1000.0,0.0001669,2]
[398414742,1765624231963,-1000.0,0.0001669,2]
[398414744,1765624231972,-1000.0,0.0001669,2]
[398414746,1765624231981,-250.0,0.0001669,2]
[398414748,1765624231992,-500.0,0.0001669,2]
[398414750,1765624232002,-250.0,0.0001669,2]
[398414751,1765624232012,-262.64147275,0.0001669,2]
[398414752,1765624232023,-151.0,0.0001669,2]
[398414753,1765624232033,-151.0,0.0001669,2]
[398414754,1765624232043,-151.0,0.0001669,2]
[398414755,1765624232054,-151.0,0.0001669,2]
[398414756,1765624232064,-151.0,0.0001669,2]
[398414757,1765624232073,-151.0,0.0001669,2]
[398414758,1765624232083,-151.0,0.0001669,2]
[398414759,1765624232092,-151.0,0.0001669,2]
[398414760,1765624232103,-151.0,0.0001669,2]
[398414761,1765624232114,-204.1206432,0.0001669,2]
[398414762,1765624232123,-163.55612952,0.000167,2]
[398414763,1765624232133,-2042.245,0.000167,2]
[398414764,1765624232143,-163.21753449,0.000167,2]
[398414765,1765624232154,-2422.32909491,0.000167,2]
[398414766,1765624232164,-7514.47782053,0.000167,2]
[398414767,1765624232173,-1056.65660394,0.000167,2]
[398414768,1765624232185,-1809.37149722,0.000167,2]
[398414769,1765624232234,-18025.30429908,0.000167,2]
[398414770,1765624237573,-3275.40696767,0.000167,2]
[398414776,1765624240698,-334.69899982,0.000167,2]
[398414777,1765624240718,-453.28,0.000167,2]
[398414784,1765624242645,-591.12801699,0.000167,2]
[398414785,1765624242750,-500.0,0.000167,2]
[398414786,1765624242937,-599.66310355,0.000167,2]
[398414787,1765624242956,-1097.0,0.000167,2]
[398414830,1765624245983,-21582.14624081,0.000167,2]
[398414831,1765624245995,-2034.83113159,0.000167,2]
[398414832,1765624246019,-320.29909564,0.000167,2]
[398414833,1765624246030,-500.0,0.000167,2]
[398414891,1765624865867,-275.38884791,0.00016354,2]
[398414892,1765624869208,-348.40600304,0.00016354,2]
[398414894,1765624871129,-300.0,0.00016354,2]
[398414895,1765624873457,-205.50855326,0.00016354,2]
[398414896,1765624873479,-209.5155039,0.00016354,2]
[398414903,1765624926457,-77.4844961,0.00016354,2]
[398414904,1765624926481,-156.51263133,0.00016424,2]
[398414905,1765624928220,-38.48736867,0.00016424,2]
[398414906,1765624928241,-194.4334169,0.00016424,2]
[398414909,1765624985868,-55.5665831,0.00016424,2]
[398414910,1765624985890,-139.4334169,0.00016499,2]
[398414913,1765625017873,-159.66281333,0.00016499,2]
[398414914,1765625017894,-140.33718667,0.00016538,2]
[398414915,1765625019963,-268.52767106,0.00016538,2]
[398414917,1765625022232,-791.13514227,0.00016538,2]
[398414918,1765625022254,-12.22181191,0.00016539,2]
[398414926,1765625077101,-153.72454986,0.00016539,2]
[398414928,1765625121893,-150.0,0.000162,2]
[398414929,1765625121917,-130.99585294,0.000162,2]
[398414930,1765625125735,-19.00414706,0.000162,2]
[398414931,1765625125758,-150.0,0.000162,2]
[398414932,1765625125782,-25.99585294,0.000162,2]
[398414934,1765625127177,-124.00414706,0.000162,2]
[398414935,1765625127201,-70.99585294,0.000162,2]
[398414939,1765625180915,-79.00414706,0.000162,2]
[398414940,1765625180938,-150.65844906,0.000162,2]
[398414941,1765625180960,-150.6650232,0.000162,2]
[398414942,1765625180984,-150.0,0.000162,2]
[398414943,1765625181007,-19.13644495,0.00016439,2]
[398414944,1765625183527,-153.82872334,0.00016439,2]
[398414948,1765625212147,-428.62302761,0.00016356,2]
[398414949,1765625216219,-325.79415652,0.000162,5]
[398414951,1765625220605,-176.70422535,0.000162,5]
[398414952,1765625224466,-300.0,0.00016199,2]
[398414953,1765625224488,-181.99247478,0.000162,5]
[398414954,1765625230376,-491.81544205,0.000162,5]
[398414955,1765625231924,-1062.3377165,0.000162,5]
[398414956,1765625231971,-10000.01,0.000162,5]
[398414957,1765625231991,-7778.93506678,0.000162,5]
[398414958,1765625232001,-274.66976039,0.00016356,2]
[398414959,1765625232010,-550.0,0.00016438,2]
[398414960,1765625232020,-500.0,0.00016439,2]
[398414961,1765625232030,-203.30198314,0.00016439,2]
[398414962,1765625232039,-329.81140173,0.00016439,2]
[398414963,1765625232048,-363.29178796,0.00016439,2]
[398414964,1765625232079,-10.67070926,0.00016439,2]
[398414965,1765625232106,-500.0,0.00016439,2]
[398414966,1765625232134,-622.39241614,0.00016439,2]
[398414967,1765625232169,-500.0,0.00016439,2]
[398414968,1765625232198,-154.72332235,0.00016439,2]
[398414969,1765625232231,-500.0,0.00016439,2]
[398414970,1765625232263,-243.50176098,0.00016439,2]
[398414971,1765625232455,-7468.72179127,0.0001644,2]
[398414972,1765625232511,-10000.01,0.0001644,2]
[398414973,1765625232584,-10000.01,0.0001644,2]
[398414974,1765625232672,-10000.01,0.0001644,2]
[398414975,1765625232685,-10000.01,0.0001644,2]
[398414976,1765625232771,-10000.01,0.0001644,2]
[398414978,1765625233334,-10.67070926,0.0001644,2]
[398414979,1765625233352,-500.0,0.0001644,2]
[398414980,1765625233408,-622.39241614,0.0001644,2]
[398414981,1765625233429,-500.0,0.0001644,2]
[398414982,1765625233442,-154.72332235,0.0001644,2]
[398414983,1765625233457,-500.0,0.0001644,2]
[398414984,1765625233474,-243.50176098,0.0001644,2]
[398414985,1765625233512,-4937.43358254,0.0001644,2]
[398414986,1765625233748,-10000.01,0.0001644,2]
[398414987,1765625233813,-10000.01,0.0001644,2]
[398414988,1765625233973,-10000.01,0.0001644,2]
[398414989,1765625234063,-333.92487446,0.0001644,2]
[398414990,1765625234081,-10000.01,0.0001644,2]
[398414991,1765625234133,-10000.01,0.0001644,2]
[398414992,1765625235876,-10000.01,0.0001644,2]
[398414993,1765625236176,-10000.01,0.0001644,2]
[398414994,1765625236230,-334.01590842,0.0001644,2]
[398414995,1765625236289,-10000.01,0.0001644,2]
[398414996,1765625236404,-10000.01,0.0001644,2]
[398414997,1765625236518,-10000.01,0.0001644,2]
[398414998,1765625236639,-10000.01,0.0001644,2]
[398414999,1765625236800,-10000.01,0.0001644,2]
[398415000,1765625236901,-10000.01,0.0001644,2]
[398415001,1765625237016,-10000.01,0.0001644,2]
[398415004,1765625237169,-10000.01,0.0001644,2]
[398415009,1765625237336,-10000.01,0.0001644,2]
[398415010,1765625237558,-180.99030211,0.00016438,2]
[398415011,1765625237592,-9638.02939578,0.0001644,2]
[398415012,1765625237674,-10000.01,0.0001644,2]
[398415013,1765625237832,-10000.01,0.0001644,2]
[398415014,1765625237930,-10000.01,0.0001644,2]
[398415015,1765625238187,-258.30466272,0.0001644,2]
[398415016,1765625240204,-383.16556999,0.0001644,2]
[398415017,1765625244991,-281.38617894,0.0001644,2]
[398415018,1765625246549,-299.97059731,0.0001644,2]
[398415019,1765625249179,-307.21926674,0.0001644,2]
[398415022,1765625252710,-209.5108101,0.0001644,2]
[398415023,1765625255203,-171.07957278,0.00016439,2]
[398415024,1765625257305,-275.19858083,0.00016439,2]
[398415025,1765625258901,-175.95408112,0.00016439,2]
[398415026,1765625258928,-144.43149334,0.0001644,2]
[398415027,1765625261304,-240.174312,0.0001644,2]
[398415029,1765625264247,-180.16924006,0.0001644,2]
[398415030,1765625269347,-828.54133745,0.0001644,2]
[398415031,1765625274550,-251.26617802,0.00016324,2]
[398415032,1765625276693,-224.72972198,0.00016324,2]
[398415033,1765625276718,-206.75365186,0.0001644,2]
[398415035,1765625278320,-164.08180945,0.00016438,2]
[398415036,1765625278354,-30.91819055,0.0001644,2]
[398415037,1765625280696,-338.82441795,0.0001644,2]
[398415038,1765625281826,-470.69694866,0.00016439,2]
[398415039,1765625283309,-260.22822215,0.00016439,2]
[398415040,1765625286196,-240.98362092,0.00016439,2]
[398415041,1765625288356,-224.75548614,0.00016439,2]
[398415042,1765625292250,-3.33572213,0.00016439,2]
[398415043,1765625292273,-165.12361646,0.00016439,2]
[398415045,1765625297887,-134.87638354,0.00016439,2]
[398415046,1765625297909,-81.67718108,0.0001644,2]
[398415047,1765625299847,-218.32281892,0.0001644,2]
[398415048,1765625299872,-76.07954352,0.0001644,2]
[398415049,1765625303751,-188.01939578,0.0001644,2]
[398415051,1765625309001,-166.917913,0.0001644,2]
[398415053,1765625311363,-331.54066141,0.0001644,2]
[398415054,1765625316367,-200.73646592,0.0001644,2]
[398415055,1765625318750,-250.0,0.0001644,2]
[398415056,1765625319132,10000.01,0.00016,4]
[398415057,1765625319153,10000.01,0.00016,4]
[398415058,1765625319174,10000.01,0.00016,4]
[398415059,1765625319193,10000.01,0.00016,4]
[398415060,1765625319214,10000.01,0.00016,4]
[398415061,1765625319234,10000.01,0.00016,4]
[398415062,1765625319254,10000.01,0.00016,4]
[398415063,1765625319277,10000.01,0.00016,4]
[398415064,1765625319300,10000.01,0.00016,4]
[398415065,1765625319323,10000.01,0.00016,4]
[398415066,1765625319344,10000.01,0.00016,4]
[398415067,1765625319365,10000.01,0.00016,4]